fUSD/lending_fUSD_20260423
["ID","MTS","AMOUNT","RATE_DAILY","PERIOD"]
[421008940,1776913832320,-150.0,6.753e-05,2]
[421008941,1776913832330,-500.0,6.755e-05,2]
[421008942,1776913832339,-501.00157318,6.773e-05,2]
[421008943,1776913832349,-501.72304492,6.773e-05,2]
[421008944,1776913832358,-200.12222698,6.773e-05,2]
[421008945,1776913832368,-500.0,6.773e-05,2]
[421008946,1776913832378,-17095.9501561,6.788e-05,2]
[421008948,1776913832391,-8885.5858439,6.788e-05,2]
[421008950,1776913832401,-500.0,6.788e-05,2]
[421008952,1776913832410,-9552.16786547,6.794e-05,2]
[421008953,1776913832419,-200.0,6.794e-05,2]
[421008954,1776913832429,-1428.38747117,6.794e-05,2]
[421008955,1776913832439,-202.55142124,6.794e-05,2]
[421008956,1776913832448,-721.12765535,6.794e-05,2]
[421008957,1776913832457,-743.50770149,6.794e-05,2]
[421008958,1776913832467,-151.0,6.794e-05,2]
[421008959,1776913832477,-151.0,6.794e-05,2]
[421008960,1776913832487,-300.29572809,6.794e-05,2]
[421008961,1776913832496,-152.0,6.794e-05,2]
[421008962,1776913832506,-152.25265574,6.794e-05,2]
[421008963,1776913832515,-174.61919141,6.794e-05,2]
[421008964,1776913832524,-461.59565017,6.794e-05,2]
[421008965,1776913832534,-283.3999422,6.794e-05,2]
[421008966,1776913832543,-210.02628787,6.794e-05,2]
[421008967,1776913832552,-500.0,6.797e-05,2]
[421008968,1776913832562,-500.0,6.797e-05,2]
[421008969,1776913832997,-500.0,6.797e-05,2]
[421008970,1776913833015,-500.0,6.797e-05,2]
[421008971,1776913833024,-500.0,6.797e-05,2]
[421008972,1776913833033,-500.0,6.797e-05,2]
[421008973,1776913833043,-500.0,6.797e-05,2]
[421008974,1776913833052,-500.0,6.797e-05,2]
[421008975,1776913833062,-500.0,6.797e-05,2]
[421008976,1776913833071,-500.0,6.797e-05,2]
[421008977,1776913833081,-500.0,6.797e-05,2]
[421008978,1776913833090,-500.0,6.797e-05,2]
[421008979,1776913833100,-500.0,6.797e-05,2]
[421008980,1776913833109,-500.0,6.797e-05,2]
[421008981,1776913833118,-500.0,6.797e-05,2]
[421008982,1776913833127,-500.0,6.797e-05,2]
[421008983,1776913833137,-500.0,6.797e-05,2]
[421008984,1776913833148,-500.0,6.797e-05,2]
[421008985,1776913833157,-500.0,6.797e-05,2]
[421008986,1776913833167,-500.0,6.797e-05,2]
[421008987,1776913833177,-500.0,6.797e-05,2]
[421008988,1776913833187,-500.0,6.797e-05,2]
[421008989,1776913833196,-500.0,6.797e-05,2]
[421008990,1776913833206,-500.0,6.797e-05,2]
[421008991,1776913833216,-500.0,6.797e-05,2]
[421008992,1776913833225,-500.0,6.797e-05,2]
[421008993,1776913833235,-500.0,6.797e-05,2]
[421008994,1776913833245,-500.0,6.797e-05,2]
[421008995,1776913833255,-500.0,6.797e-05,2]
[421008996,1776913833265,-500.0,6.797e-05,2]
[421008997,1776913833274,-500.0,6.797e-05,2]
[421008998,1776913833284,-500.0,6.797e-05,2]
[421008999,1776913833294,-500.0,6.797e-05,2]
[421009000,1776913833304,-500.0,6.797e-05,2]
[421009001,1776913833313,-500.0,6.797e-05,2]
[421009002,1776913833323,-500.0,6.797e-05,2]
[421009003,1776913833333,-500.0,6.797e-05,2]
[421009004,1776913833343,-4999.99,6.797e-05,2]
[421009005,1776913833352,-299.99,6.797e-05,2]
[421009006,1776913833363,-500.0,6.797e-05,2]
[421009007,1776913833373,-500.0,6.797e-05,2]
[421009008,1776913833383,-409.02116603,6.797e-05,2]
[421009009,1776913833393,-500.0,6.797e-05,2]
[421009010,1776913833403,-500.0,6.797e-05,2]
[421009011,1776913833413,-500.0,6.797e-05,2]
[421009012,1776913833423,-500.0,6.797e-05,2]
[421009013,1776913833433,-9999.99,6.797e-05,2]
[421009014,1776913833443,-1573.83,6.797e-05,2]
[421009015,1776913833452,-2959.971661,6.797e-05,2]
[421009016,1776913833465,-4662.738339,6.797e-05,2]
[421009017,1776913833474,-179.35140335,6.797e-05,2]
[421009018,1776913833484,-9999.99,6.798e-05,2]
[421009019,1776913833494,-150.99,6.798e-05,2]
[421009020,1776913833503,-3377.08,6.798e-05,2]
[421009021,1776913833512,-5480.32,6.798e-05,2]
[421009022,1776913833522,-1588.99,6.798e-05,2]
[421009023,1776913833531,-153.45764577,6.798e-05,2]
[421009024,1776913833540,-164.0,6.798e-05,3]
[421009025,1776913833550,-1099.0,6.798e-05,3]
[421009026,1776913833559,-159.0,6.798e-05,3]
[421009027,1776913833569,-153.0,6.798e-05,3]
[421009028,1776913833579,-1105.0,6.8e-05,5]
[421009029,1776913833588,-254.9870533,6.809e-05,2]
[421009030,1776913833598,-500.0,6.81e-05,2]
[421009031,1776913833607,-150.0,6.812e-05,2]
[421009032,1776913833616,-150.0,6.812e-05,2]
[421009033,1776913833626,-150.0,6.812e-05,2]
[421009034,1776913833635,-150.0,6.847e-05,2]
[421009035,1776913833645,-150.0,6.847e-05,2]
[421009036,1776913833654,-9905.5980765,6.849e-05,2]
[421009037,1776913833664,-151.0,6.849e-05,2]
[421009038,1776913833673,-1144.0,6.861e-05,2]
[421009039,1776913833683,-313.0,6.861e-05,2]
[421009040,1776913833692,-500.0,6.865e-05,2]
[421009041,1776913833701,-150.0,6.87e-05,2]
[421009042,1776913833710,-500.0,6.873e-05,2]
[421009043,1776913833719,-420.0,6.874e-05,2]
[421009044,1776913833729,-10272.10520533,6.904e-05,2]
[421009045,1776913833738,-151.0,6.904e-05,2]
[421009046,1776913833748,-500.0,6.92e-05,2]
[421009047,1776913833759,-150.0,6.928e-05,2]
[421009048,1776913833768,-11118.62501267,6.93e-05,2]
[421009049,1776913833777,-500.0,6.932e-05,2]
[421009050,1776913833787,-151.0,6.959e-05,2]
[421009051,1776913833796,-500.0,6.959e-05,2]
[421009052,1776913833806,-1000.0,6.97e-05,2]
[421009053,1776913833815,-1107.58985267,6.97e-05,2]
[421009054,1776913833825,-500.0,6.973e-05,2]
[421009055,1776913833834,-500.0,6.973e-05,2]
[421009056,1776913833843,-160.13770695,6.973e-05,2]
[421009057,1776913833852,-160.47327996,6.973e-05,2]
[421009058,1776913833862,-160.12174423,6.973e-05,2]
[421009059,1776913833872,-349.66062925,6.973e-05,2]
[421009060,1776913833881,-500.96835289,6.973e-05,2]
[421009061,1776913833891,-234.42392379,6.973e-05,2]
[421009062,1776913833902,-160.15231831,6.973e-05,2]
[421009063,1776913833912,-500.0,6.973e-05,2]
[421009064,1776913833922,-500.0,6.973e-05,2]
[421009065,1776913833932,-500.0,6.973e-05,2]
[421009066,1776913833942,-502.26723371,6.973e-05,2]
[421009067,1776913833951,-202.75326216,6.973e-05,2]
[421009068,1776913833961,-500.0,6.975e-05,2]
[421009069,1776913833971,-3761.721,6.981e-05,2]
[421009070,1776913833980,-268.849,6.982e-05,2]
[421009071,1776913833990,-250.0,6.986e-05,2]
[421009072,1776913833999,-175.5,6.986e-05,2]
[421009073,1776913834009,-175.5,6.986e-05,2]
[421009074,1776913834018,-175.5,6.986e-05,2]
[421009075,1776913834028,-150.0,6.986e-05,2]
[421009076,1776913834037,-177.5,6.986e-05,2]
[421009077,1776913834046,-258.62357071,6.986e-05,2]
[421009078,1776913834055,-212.91722245,6.986e-05,2]
[421009079,1776913834065,-150.0,6.986e-05,2]
[421009080,1776913834075,-274.84299999,6.986e-05,2]
[421009081,1776913834084,-299.2047187,6.986e-05,2]
[421009082,1776913834093,-150.0,6.986e-05,2]
[421009083,1776913834102,-289.7208,6.986e-05,2]
[421009084,1776913834112,-150.0,6.986e-05,2]
[421009085,1776913834121,-150.0,6.99e-05,2]
[421009086,1776913834130,-4485.0393305,6.991e-05,2]
[421009087,1776913834140,-7891.93168616,6.991e-05,2]
[421009088,1776913834152,-404.30213,6.991e-05,2]
[421009089,1776913834164,-673.90711308,6.991e-05,2]
[421009090,1776913834175,-312.40763112,6.991e-05,2]
[421009094,1776913838191,-155.63045816,6.692e-05,2]
[421009095,1776913838201,-186.79344116,6.692e-05,2]
[421009096,1776913838243,-28.49280818,6.692e-05,2]
[421009104,1776913838624,-500.0,6.692e-05,2]
[421009106,1776913838634,-500.0,6.692e-05,2]
[421009108,1776913838643,-500.0,6.692e-05,2]
[421009110,1776913838653,-252.64616854,6.692e-05,2]
[421009112,1776913838663,-133321.40323791,6.991e-05,2]
[421009115,1776913838675,-304.0,6.991e-05,2]
[421009150,1776913842027,-3532.20722519,6.991e-05,2]
[421009151,1776913842054,-529.123,6.991e-05,2]
[421009152,1776913842066,-704.61239168,6.991e-05,2]
[421009161,1776913846760,-877.0,6.897e-05,5]
[421009162,1776913846769,-274850.59378086,6.991e-05,2]
[421009163,1776913846814,-1095.23153692,6.991e-05,2]
[421009169,1776913947883,5000.01,6.673e-05,2]
[421009170,1776913947907,5000.01,6.673e-05,2]
[421009171,1776913947932,5000.01,6.673e-05,2]
[421009172,1776913947956,5000.01,6.673e-05,2]
[421009173,1776913947981,5000.01,6.673e-05,2]
[421009174,1776913948005,5000.01,6.673e-05,2]
[421009175,1776913948029,5000.01,6.673e-05,2]
[421009176,1776913948052,5000.01,6.673e-05,2]
[421009177,1776913948076,5000.01,6.673e-05,2]
[421009178,1776913948100,5000.01,6.673e-05,2]
[421009179,1776913948124,10000.01,6.673e-05,2]
[421009180,1776913948148,10000.01,6.673e-05,2]
[421009181,1776913948173,10000.01,6.673e-05,2]
[421009182,1776913948197,10000.01,6.673e-05,2]
[421009183,1776913948220,10000.01,6.673e-05,2]
[421009184,1776913948245,10000.01,6.673e-05,2]
[421009185,1776913948268,10000.01,6.673e-05,2]
[421009186,1776913948292,10000.01,6.673e-05,2]
[421009187,1776913948316,10000.01,6.673e-05,2]
[421009188,1776913948341,10000.01,6.673e-05,2]
[421009189,1776913948412,500.0,6.133e-05,2]
[421009190,1776913957669,-1672.94975962,6.673e-05,2]
[421009191,1776913957702,-5000.01,6.673e-05,2]
[421009192,1776913957723,-5000.01,6.673e-05,2]
[421009193,1776913981240,300.0,6.672e-05,2]
[421009194,1776914003682,500.0,6.672e-05,2]
[421009195,1776914003768,500.0,6.672e-05,2]
[421009196,1776914003823,500.0,6.672e-05,2]
[421009197,1776914003870,569.68224617,6.672e-05,2]
[421009198,1776914003924,500.0,6.672e-05,2]
[421009199,1776914010186,178.49076553,6.672e-05,2]
[421009200,1776914021953,500.09064536,6.672e-05,2]
[421009201,1776914027890,500.0,6.672e-05,2]
[421009202,1776914041718,300.0,6.672e-05,2]
[421009203,1776914045717,651.74634294,6.672e-05,3]
[421009204,1776914045746,515.25365706,6.672e-05,3]
[421009205,1776914064701,163.0,6.672e-05,3]
[421009206,1776914065689,154.0,6.672e-05,3]
[421009208,1776914102058,1200.0,6.672e-05,2]
[421009209,1776914102129,150.0,6.672e-05,2]
[421009210,1776914107665,174.0,6.672e-05,3]
[421009211,1776914108907,1108.0,6.672e-05,3]
[421009213,1776914115809,154.0,6.672e-05,3]
[421009214,1776914166734,1053.0,6.672e-05,3]
[421009215,1776914173635,154.0,6.672e-05,3]
[421009216,1776914222033,174.75634294,6.672e-05,2]
[421009217,1776914222056,125.24365706,6.672e-05,2]
[421009218,1776914228833,1000.0,6.672e-05,3]
[421009219,1776914235293,154.0,6.672e-05,3]
[421009220,1776914281203,300.0,6.672e-05,2]
[421009221,1776914281662,300.0,6.672e-05,2]
[421009222,1776914281856,150.0,6.672e-05,2]
[421009223,1776914285163,500.0,6.672e-05,2]
[421009224,1776914285213,500.0,6.672e-05,2]
[421009225,1776914286162,632.06188908,6.672e-05,2]
[421009226,1776914300224,285.52024957,6.672e-05,2]
[421009227,1776914312681,150.0,6.472e-05,2]
[421009228,1776914341181,300.0,6.672e-05,2]
[421009229,1776914346762,603.18420429,6.672e-05,3]
[421009230,1776914346786,346.81579571,6.672e-05,3]
[421009231,1776914352593,333.14023682,6.672e-05,2]
[421009232,1776914361064,154.0,6.672e-05,3]
[421009233,1776914388824,171.57,6.271e-05,2]
[421009234,1776914390451,163.0,6.672e-05,3]
[421009235,1776914401894,300.0,6.672e-05,2]
[421009236,1776914401928,1200.0,6.672e-05,2]
[421009237,1776914410362,166.0,6.672e-05,3]
[421009238,1776914410666,903.0,6.672e-05,3]
[421009239,1776914417626,154.0,6.672e-05,3]
[421009240,1776914438021,500.0,6.573e-05,2]
[421009241,1776914462853,300.0,6.672e-05,2]
[421009242,1776914467544,150.0,6.672e-05,2]
[421009243,1776914468194,158.48396747,6.672e-05,3]
[421009244,1776914468217,699.51603253,6.672e-05,3]
[421009245,1776914484197,150.0,6.672e-05,2]
[421009246,1776914489151,154.0,6.672e-05,3]
[421009247,1776914492355,3848.831,6.539e-05,2]
[421009248,1776914492396,147.66296747,6.539e-05,2]
[421009249,1776914492419,143.76803253,6.539e-05,2]
[421009250,1776914495788,150.0,6.672e-05,2]
[421009251,1776914509244,152.0,6.605e-05,7]
[421009252,1776914512898,152.0,6.605e-05,7]
[421009253,1776914512975,152.0,6.605e-05,7]
[421009254,1776914519775,150.0,6.672e-05,2]
[421009255,1776914525618,4100.24196747,6.051e-05,2]
[421009256,1776914525640,1500.99803253,6.051e-05,2]
[421009257,1776914527561,815.0,6.672e-05,3]
[421009258,1776914531151,200.0,6.673e-05,2]
[421009259,1776914531692,1428.38747117,6.673e-05,2]
[421009260,1776914533688,154.0,6.672e-05,3]
[421009261,1776914534922,721.12765535,6.673e-05,2]
[421009262,1776914541150,174.61919141,6.673e-05,2]
[421009263,1776914541533,5.87764954,6.673e-05,2]
[421009264,1776914541558,145.12235046,6.673e-05,2]
[421009265,1776914544765,151.0,6.673e-05,2]
[421009266,1776914550908,300.0,6.672e-05,2]
[421009267,1776914551686,500.0,6.672e-05,2]
[421009268,1776914551731,167.11505381,6.672e-05,2]
[421009269,1776914556958,-3959.15980225,6.673e-05,2]
[421009270,1776914557030,-10000.01,6.673e-05,2]
[421009271,1776914568217,500.0,6.672e-05,2]
[421009272,1776914568715,167.11505381,6.672e-05,2]
[421009273,1776914568765,500.0,6.672e-05,2]
[421009274,1776914584906,774.0,6.672e-05,3]
[421009275,1776914587663,500.0,6.672e-05,2]
[421009276,1776914587707,167.11505381,6.672e-05,2]
[421009277,1776914590996,154.0,6.672e-05,3]
[421009278,1776914600903,500.0,6.672e-05,2]
[421009279,1776914600949,167.11505381,6.672e-05,2]
[421009280,1776914608798,1218.70931276,6.663e-05,2]
[421009281,1776914613498,351.95552581,6.672e-05,2]
[421009282,1776914613529,148.04447419,6.672e-05,2]
[421009283,1776914613573,167.11505381,6.672e-05,2]
[421009284,1776914618354,200.0,6.084e-05,2]
[421009285,1776914627416,500.0,6.672e-05,2]
[421009286,1776914627473,500.0,6.672e-05,2]
[421009287,1776914627530,334.23010762,6.672e-05,2]
[421009288,1776914641119,300.0,6.672e-05,2]
[421009289,1776914641954,150.0,6.672e-05,2]
[421009290,1776914645340,500.0,6.672e-05,2]
[421009291,1776914645391,167.11505381,6.672e-05,2]
[421009292,1776914645421,735.0,6.672e-05,3]
[421009293,1776914651274,154.0,6.672e-05,3]
[421009294,1776914661244,500.0,6.672e-05,2]
[421009295,1776914661281,167.11505381,6.672e-05,2]
[421009296,1776914674465,500.0,6.672e-05,2]
[421009297,1776914674501,500.0,6.672e-05,2]
[421009298,1776914674550,334.23010762,6.672e-05,2]
[421009299,1776914691744,500.0,6.672e-05,2]
[421009300,1776914691802,167.11505381,6.672e-05,2]
[421009301,1776914701148,300.0,6.672e-05,2]
[421009302,1776914701183,1200.0,6.672e-05,2]
[421009303,1776914701451,300.0,6.672e-05,2]
[421009304,1776914706614,157.0,6.672e-05,3]
[421009305,1776914707043,500.0,6.672e-05,2]
[421009306,1776914707098,167.11505381,6.672e-05,2]
[421009307,1776914709895,374.54978476,6.672e-05,3]
[421009308,1776914709916,323.45021524,6.672e-05,3]
[421009309,1776914719774,167.11505381,6.672e-05,2]
[421009310,1776914720001,500.0,6.672e-05,2]
[421009311,1776914732773,500.0,6.672e-05,2]
[421009312,1776914732814,500.0,6.672e-05,2]
[421009313,1776914732856,334.23010762,6.672e-05,2]
[421009314,1776914750524,500.0,6.672e-05,2]
[421009315,1776914750575,167.11505381,6.672e-05,2]
[421009316,1776914752486,150.0,6.288e-05,2]
[421009317,1776914765212,500.0,6.672e-05,2]
[421009318,1776914765410,167.11505381,6.672e-05,2]
[421009319,1776914766564,664.0,6.672e-05,3]
[421009320,1776914777930,500.0,6.672e-05,2]
[421009321,1776914777985,26.98451571,6.672e-05,2]
[421009322,1776914778014,307.24559191,6.672e-05,2]
[421009323,1776914778054,500.0,6.672e-05,2]
[421009324,1776914795842,500.0,6.672e-05,2]
[421009325,1776914795992,167.11505381,6.672e-05,2]
[421009326,1776914803924,152.0,6.665e-05,7]
[421009327,1776914811724,500.0,6.672e-05,2]
[421009328,1776914811768,167.11505381,6.672e-05,2]
[421009329,1776914823779,150.0,6.672e-05,2]
[421009330,1776914824370,500.0,6.672e-05,2]
[421009331,1776914824522,167.11505381,6.672e-05,2]
[421009332,1776914827722,578.20924308,6.673e-05,2]
[421009333,1776914828909,630.0,6.672e-05,3]
[421009334,1776914830782,500.0,6.673e-05,2]
[421009335,1776914830955,181.21000358,6.673e-05,2]
[421009336,1776914830979,1247.17746759,6.673e-05,2]
[421009337,1776914831465,721.12765535,6.673e-05,2]
[421009338,1776914831497,210.7245527,6.673e-05,2]
[421009339,1776914832269,200.0,6.673e-05,2]
[421009340,1776914837176,500.0,6.672e-05,2]
[421009341,1776914837237,167.11505381,6.672e-05,2]
[421009342,1776914837329,-10000.01,6.673e-05,2]
[421009343,1776914837446,-10000.01,6.673e-05,2]
[421009344,1776914837557,-10000.01,6.673e-05,2]
[421009345,1776914837659,-10000.01,6.673e-05,2]
[421009346,1776914838315,-10000.01,6.673e-05,2]
[421009347,1776914838359,389.68979041,6.673e-05,2]
[421009348,1776914838576,-10000.01,6.673e-05,2]
[421009349,1776914838594,-10000.01,6.673e-05,2]
[421009350,1776914839021,151.0,6.673e-05,2]
[421009351,1776914839784,151.0,6.673e-05,2]
[421009352,1776914840454,-10000.01,6.673e-05,2]
[421009353,1776914840643,-10000.01,6.673e-05,2]
[421009355,1776914843357,-10000.01,6.673e-05,2]
[421009356,1776914843472,-10000.01,6.673e-05,2]
[421009357,1776914843694,-10000.01,6.673e-05,2]
[421009358,1776914843835,-10000.01,6.673e-05,2]
[421009359,1776914843953,-10000.01,6.673e-05,2]
[421009360,1776914844108,-10000.01,6.673e-05,2]
[421009361,1776914844241,-10000.01,6.673e-05,2]
[421009362,1776914849441,-10000.01,6.673e-05,2]
[421009363,1776914849562,-10000.01,6.673e-05,2]
[421009364,1776914849697,-10000.01,6.673e-05,2]
[421009365,1776914849737,500.0,6.672e-05,2]
[421009366,1776914849785,500.0,6.672e-05,2]
[421009367,1776914849844,262.17548014,6.672e-05,2]
[421009368,1776914849873,72.05462748,6.672e-05,2]
[421009369,1776914850349,174.61919141,6.673e-05,2]
[421009370,1776914860580,4753.33618111,6.089e-05,2]
[421009371,1776914860602,4731.24381889,6.089e-05,2]
[421009372,1776914867521,268.76618111,6.672e-05,2]
[421009373,1776914867565,231.23381889,6.672e-05,2]
[421009374,1776914867621,167.11505381,6.672e-05,2]
[421009375,1776914883152,500.0,6.672e-05,2]
[421009376,1776914883210,167.11505381,6.672e-05,2]
[421009377,1776914886887,463.0,6.672e-05,3]
[421009378,1776914895988,500.0,6.672e-05,2]
[421009379,1776914896047,167.11505381,6.672e-05,2]
[421009380,1776914902074,155.0,6.672e-05,3]
[421009381,1776914907340,200.0,6.6e-05,2]
[421009382,1776914908673,500.0,6.672e-05,2]
[421009383,1776914908725,167.11505381,6.672e-05,2]
[421009384,1776914911373,2180.66483857,6.069e-05,2]
[421009385,1776914911397,5000.01,6.069e-05,2]
[421009386,1776914911419,5000.01,6.069e-05,2]
[421009387,1776914911442,5000.01,6.069e-05,2]
[421009388,1776914911465,5000.01,6.069e-05,2]
[421009389,1776914911489,10000.01,6.069e-05,2]
[421009390,1776914911511,10000.01,6.069e-05,2]
[421009391,1776914911535,7608.60516143,6.069e-05,2]
[421009392,1776914923504,500.0,6.672e-05,2]
[421009393,1776914923541,167.11505381,6.672e-05,2]
[421009394,1776914931911,500.0,6.672e-05,2]
[421009395,1776914931969,500.0,6.672e-05,2]
[421009396,1776914932023,334.23010762,6.672e-05,2]
[421009397,1776914952262,390.05967714,6.672e-05,3]
[421009398,1776914952288,383.94032286,6.672e-05,3]
[421009399,1776914980802,500.0,6.672e-05,2]
[421009400,1776914980853,167.11505381,6.672e-05,2]
[421009401,1776914989334,8948.95462333,6.573e-05,2]
[421009402,1776914989360,10000.01,6.573e-05,2]
[421009403,1776914989384,10000.01,6.573e-05,2]
[421009404,1776914989410,10000.01,6.573e-05,2]
[421009405,1776914989435,10000.01,6.573e-05,2]
[421009406,1776914989459,10000.01,6.573e-05,2]
[421009407,1776914989484,10000.01,6.573e-05,2]
[421009408,1776914989508,10000.01,6.573e-05,2]
[421009409,1776914989533,10000.01,6.573e-05,2]
[421009410,1776914989557,10000.01,6.573e-05,2]
[421009411,1776914999917,-105.39025676,6.573e-05,2]
[421009412,1776915001451,1200.0,6.572e-05,2]
[421009413,1776915002389,-5000.01,6.573e-05,2]
[421009414,1776915009977,-5000.01,6.573e-05,2]
[421009415,1776915024448,150.0,6.572e-05,2]
[421009420,1776915034561,-530.24945899,6.573e-05,2]
[421009421,1776915034589,-285839.70756092,6.573e-05,2]
[421009422,1776915034599,-735.0,6.573e-05,3]
[421009423,1776915034608,-172.0,6.573e-05,3]
[421009424,1776915034617,-500.0,6.672e-05,2]
[421009425,1776915034627,-174.79537667,6.672e-05,2]
[421009426,1776915034636,-660.55337947,6.673e-05,2]
[421009427,1776915034646,-500.0,6.728e-05,2]
[421009428,1776915034656,-151.0,6.728e-05,2]
[421009429,1776915034665,-500.0,6.783e-05,2]
[421009430,1776915034675,-151.0,6.783e-05,2]
[421009431,1776915034684,-171.57,6.788e-05,2]
[421009432,1776915034694,-500.0,6.838e-05,2]
[421009433,1776915034703,-154.22503535,6.838e-05,2]
[421009434,1776915034713,-158347.190449,6.884e-05,2]
[421009435,1776915034722,-1224.0445038,6.884e-05,2]
[421009436,1776915034732,-544.61648857,6.893e-05,2]
[421009437,1776915034742,-711.0,6.897e-05,5]
[421009438,1776915034752,-6155.95489445,6.93e-05,2]
[421009439,1776915034761,-3172.0,6.959e-05,2]
[421009440,1776915034770,-760.1,6.959e-05,2]
[421009441,1776915034780,-3126.1588935,6.972e-05,2]
[421009442,1776915034789,-299967.0872227,6.972e-05,2]
[421009443,1776915034799,-500.45135727,6.973e-05,2]
[421009444,1776915034808,-500.0,6.973e-05,2]
[421009445,1776915034818,-500.0,6.973e-05,2]
[421009446,1776915034827,-501.90476955,6.973e-05,2]
[421009447,1776915034841,-500.0,6.973e-05,2]
[421009448,1776915034850,-500.0,6.973e-05,2]
[421009449,1776915034859,-500.0,6.973e-05,2]
[421009450,1776915034869,-501.29040888,6.973e-05,2]
[421009451,1776915034880,-500.0,6.973e-05,2]
[421009452,1776915034890,-250.63,6.986e-05,2]
[421009453,1776915034899,-9086.3335659,6.989e-05,2]
[421009454,1776915034909,-35030.3084325,6.989e-05,2]
[421009455,1776915034919,-213.89552016,6.99e-05,2]
[421009456,1776915034928,-167.03249217,6.991e-05,2]
[421009457,1776915034938,-1532.0,6.991e-05,2]
[421009458,1776915034948,-302.0,6.991e-05,2]
[421009459,1776915034957,-152.0,6.991e-05,2]
[421009460,1776915034967,-167.0,6.991e-05,2]
[421009461,1776915034976,-1532.0,6.991e-05,2]
[421009462,1776915034986,-1532.0,6.991e-05,2]
[421009463,1776915034995,-1532.0,6.998e-05,2]
[421009464,1776915035004,-151.0,6.998e-05,2]
[421009465,1776915035013,-151.0,6.998e-05,2]
[421009466,1776915035023,-151.0,6.998e-05,2]
[421009467,1776915035032,-151.0,6.998e-05,2]
[421009468,1776915035042,-157.0744685,6.998e-05,2]
[421009469,1776915035051,-152.0,6.998e-05,2]
[421009470,1776915035061,-1532.0,6.998e-05,2]
[421009471,1776915035070,-1532.0,6.998e-05,2]
[421009472,1776915035079,-167.11186436,6.998e-05,2]
[421009473,1776915035088,-152.0,6.998e-05,2]
[421009474,1776915035099,-1532.0,6.998e-05,2]
[421009475,1776915035108,-1532.0,6.998e-05,2]
[421009476,1776915035118,-1532.0,6.998e-05,2]
[421009477,1776915035127,-1532.0,6.998e-05,2]
[421009478,1776915035137,-1532.0,6.998e-05,2]
[421009479,1776915035146,-1526.0,6.998e-05,2]
[421009480,1776915035156,-1532.0,6.998e-05,2]
[421009481,1776915035165,-1532.0,6.998e-05,2]
[421009482,1776915035175,-155.356,6.999e-05,2]
[421009483,1776915035185,-1063.82653092,6.999e-05,2]
[421009484,1776915035195,-1063.82653092,6.999e-05,2]
[421009485,1776915035204,-1093.8672339,6.999e-05,2]
[421009486,1776915035214,-241.8,6.999e-05,2]
[421009487,1776915035224,-150.0,6.999e-05,2]
[421009488,1776915035233,-1063.82653092,6.999e-05,2]
[421009489,1776915035243,-381891.94456063,7e-05,2]
[421009490,1776915035256,-55412.99095101,7e-05,2]
[421009491,1776915035267,-29409.67265179,7e-05,2]
[421009492,1776915035278,-1770.0,7e-05,2]
[421009493,1776915035310,-270.37737651,7e-05,2]
[421009497,1776915038547,-76165.53357054,7e-05,2]
[421009498,1776915038559,-48993.48432967,7e-05,2]
[421009499,1776915038570,-829.67010334,7e-05,2]
[421009588,1776915040420,-420.87029912,7e-05,2]
[421009589,1776915040476,-15194.89871342,7e-05,2]
[421009590,1776915040536,-337.05962658,7e-05,2]
[421009591,1776915040549,-336.45796652,7e-05,2]
[421009592,1776915040593,-1655.81914327,7e-05,2]
[421009593,1776915040651,-346.98225028,7e-05,2]
[421009594,1776915040976,-1433.64473537,7e-05,2]
[421009595,1776915040988,-3093.41928878,7e-05,2]
[421009596,1776915041033,-366.46993624,7e-05,2]
[421009613,1776915043388,-3719.66238373,7e-05,2]
[421009614,1776915043553,-410.59706881,7e-05,2]
[421009675,1776915048887,-375.09836645,7e-05,2]
[421009676,1776915048902,-2454.16723922,7e-05,2]
[421009677,1776915049143,-293.31172571,7e-05,2]
[421009678,1776915049162,-938.78645993,7e-05,2]
[421009679,1776915049183,-128253.96009126,7e-05,2]